Cogmind - Beta 16 @@@ ROGUE MODE // 2025.12.27 @ 11:50:40 Player: terminate1600 Result: Destroyed by G-34 Mercenary with Small Laser Performance ------------- Evolutions (0) 0 Regions Visited (1) 200 Robots Destroyed (11) 55 Value Destroyed (272) 272 Prototype IDs (0) 0 Alien Tech Used (0) 0 Bonus (0) 0 TOTAL SCORE: 527 Bonus ------- None Cogmind --------- Core Integrity 0/250 Matter 288/300 Energy 156/160 System Corruption 0% Temperature Cool (14) Movement Walking (260) Ox2 Location -10/Materials Parts ------- > --- POWER (1) -------- Light Nuclear Core > --- PROPULSION (2) --- Aluminum Leg Aluminum Leg > --- UTILITY (2) ------ High-capacity Storage Unit Utility Shielding > --- WEAPON (2) ------- (None) > --- INVENTORY (20) --- Aluminum Leg Aluminum Leg Aluminum Leg Flight Unit Flight Unit Heat Sink Large Storage Unit ECM Suite Utility Shielding Utility Shielding Peak State ------------ > --- POWER ------------ Light Nuclear Core > --- PROPULSION ------- Aluminum Leg Aluminum Leg > --- UTILITY ---------- Medium Storage Unit Small Battery > --- WEAPON ----------- EM Pulse Gun Light Assault Rifle > --- INVENTORY -------- Aluminum Leg Aluminum Leg Aluminum Leg Aluminum Leg Wheel Wheel Flight Unit Flight Unit Heat Sink ECM Suite [Rating: 10] Favorites ----------- Power Light Ion Engine Engine Light Ion Engine Power Core Light Nuclear Core Propulsion Aluminum Leg Leg Aluminum Leg Utility Small Matter Pod Storage Small Matter Pod Protection Utility Shielding Weapon Light Assault Rifle Energy Gun EM Pulse Gun Ballistic Gun Light Assault Rifle Launcher Grenade Launcher Build | -11 -10 ------- Run | Yrd Mat Slots Evolved . | . . Power . | . . Propulsion . | . . Utility . | . . Weapon . | . . Parts Attached 16 | 6 10 Power 2 | 1 1 Engine 1 | 1 . Core 1 | . 1 Reactor . | . . Propulsion 4 | 2 2 Treads . | . . Leg 4 | 2 2 Wheel . | . . Hover . | . . Flight . | . . Utility 6 | 1 5 Device . | . . Storage 5 | 1 4 Processor . | . . Hackware . | . . Protection 1 | . 1 Artifact . | . . Weapon 4 | 2 2 Energy Gun 2 | 1 1 Energy Cannon . | . . Ballistic Gun 1 | 1 . Ballistic Cannon . | . . Launcher 1 | . 1 Special Weapon . | . . Impact Weapon . | . . Slashing Weapon . | . . Piercing Weapon . | . . Special Melee Weapon . | . . Unidentified Prototypes . | . . Parts Lost 6 | . 6 Power 1 | . 1 Propulsion . | . . Utility 1 | . 1 Weapon 4 | . 4 Highest Loss Streak 3 | . 3 To Critical Strikes . | . . Average Backups 4 | 3 7 Power . | . . Propulsion 3 | 2 5 Utility . | . 1 Weapon . | . . Tool/Special . | . . Unused Backups 12 | . 12 Power . | . . Propulsion 8 | . 8 Utility 4 | . 4 Weapon . | . . Tool/Special . | . . Average Slot Usage (%) 89 | . 89 Engine 6 | . 6 Core 5 | . 5 Leg 27 | . 27 Storage 22 | . 22 Protection 2 | . 2 Energy Gun 7 | . 7 Ballistic Gun 12 | . 12 Launcher 2 | . 2 Peak Build Rating 10 | 6 10 Average Rating 6 | 5 7 On Entrance 3 | . 6 Avg Prop Armor Cover (%) . | . . Naked Turns . | . . Heaviest Build 46 | 7 46 Greatest Support 20 | 20 20 Greatest Overweight (x) 2 | . 2 Average Overweight (x) . | . . Largest Inventory Capacity 20 | 5 20 Average Capacity 6 | 5 10 Most Carried 10 | 5 10 Average Carried 4 | 3 7 Final Capacity 20 | 5 20 Final Carried 10 | 4 10 Class Distribution -------------------- 100% | Mutant Dominant Class ---------------- Mutant | -10/Materials Resources | -11 -10 ----------- Run | Yrd Mat Matter Collected 456 | 314 142 Remotely . | . . Salvage Created 322 | 61 261 Parts 19 | 2 17 Haulers Intercepted . | . . Recyclers Shooed . | . . Parts Field Recycled . | . . Retrieved Matter . | . . Parts Self-Destructed . | . . Prevented . | . . Parts Restored . | . . Kills | -11 -10 ------- Run | Yrd Mat Combat Hostiles Destroyed 9 | 1 8 Guns 6 | 1 5 AOE 3 | . 3 Classes Destroyed 3 | 2 1 Worker 2 | 1 1 Swarmer 3 | . 3 Grunt 6 | 1 5 Best Kill Streak 3 | 1 3 Combat Bots Only 3 | 1 3 Max Kills in Single Turn 2 | 1 2 Gunslinging . | . . Exploded 1 | . 1 Melee . | . . Uniques/NPCs Destroyed . | . . Combat | -11 -10 -------- Run | Yrd Mat Hostile Shots Fired 105 | 2 103 Missed 36 | . 36 Hits 69 | 2 67 Projectile 69 | 2 67 AOE 1 | . 1 Damage Taken 903 | 24 879 Core 253 | . 253 Absorbed by Shields . | . . Redirected to Shielding 9 | . 9 Core Remaining (%) 100 | 100 . Volleys Fired 68 | 4 64 Largest 2 | 2 2 Hottest 60 | 60 60 Shots Fired 88 | 8 80 Gun 82 | 8 74 Cannon . | . . Launcher 6 | . 6 Special . | . . Kinetic 64 | 4 60 Thermal . | . . Explosive 6 | . 6 Electromagnetic 18 | 4 14 Robot Hit Streak 6 | 2 6 Robot Miss Streak 8 | 2 8 Penetration Max . | . . Secondary Targets . | . . Shots Hit Robots 42 | 4 38 Core Hits 22 | 2 20 Critical Kills . | . . Critical Parts Destroyed . | . . Critical Strikes . | . . Melee Attacks . | . . Impact . | . . Slashing . | . . Piercing . | . . Sneak Attacks . | . . Combat Hostiles . | . . Follow-up Attacks . | . . Damage Inflicted 631 | 80 551 Guns 368 | 43 325 Cannons . | . . Explosions 249 | 37 212 Melee . | . . Ramming 14 | . 14 Kinetic 264 | 16 248 Thermal 37 | 37 . Explosive 212 | . 212 Electromagnetic 104 | 27 77 Impact . | . . Slashing . | . . Piercing . | . . Highest Corruption . | . . Average Corruption . | . . Corruption Purged . | . . Corruption Blocked . | . . Overload Shots . | . . Overflow Damage 18 | . 18 Projectiles . | . . Explosions 18 | . 18 Melee . | . . Knockbacks . | . . Impact . | . . Kinetic . | . . Secondary . | . . Self-Inflicted Damage 43 | . 43 Shots 2 | . 2 Rammed . | . . Targets Rammed 5 | . 5 Kicked 5 | . 5 Crushed . | . . Highest Temperature 90 | 32 90 Average Temperature 29 | 18 31 Received Heat Transfer 438 | 12 426 Siege Activations . | . . Martial Activations . | . . Shielding Activations . | . . Robots Disrupted . | . . Combat Hostiles . | . . Robots Corrupted . | . . Combat Hostiles . | . . Parts Fried . | . . Impact Corruptions . | . . Robots Melted . | . . Combat Hostiles . | . . Parts Melted . | . . Heat Transferred 50 | 50 . Parts Sabotaged . | . . Parts Stolen . | . . Parts Stripped . | . . Power Chain Reactions 1 | 1 . Alert | -11 -10 ------- Run | Yrd Mat Maximum Alert Level . | . . Low Security (%) 100 | 100 100 Level 1 . | . . Level 2 . | . . Level 3 . | . . Level 4 . | . . Level 5 . | . . High Security . | . . Max Security . | . . Peak Influence 111 | 20 111 Initial . | . . Average 11 | . 58 Influence Increases 297 | 25 272 Destroy 0b10 Robot/C 180 | 20 160 Destroy 0b10 Robot/NC 10 | 5 5 Destroy Leader 30 | . 30 Successful Hack 21 | . 21 Disable Machine 15 | . 15 Destroy Structure 26 | . 26 Lose Combat Pursuer 15 | . 15 Influence Decreases 283 | 25 258 Time Decay 223 | 25 198 Lost Part 60 | . 60 Squads Dispatched 2 | . 2 Investigation 1 | . 1 Extermination . | . . Reinforcement 1 | . 1 Assault . | . . Garrison . | . . Intercept . | . . Searches Triggered . | . . Construction Impeded . | . . Haulers Reinforced . | . . Active Scanning Responses . | . . Cargo Convoy Interrupts . | . . Stealth | -11 -10 --------- Run | Yrd Mat Distress Signals 1 | . 1 Communications Jammed . | . . Distress Signals . | . . Times Spotted 19 | 1 18 Peak Tracking Total 5 | 1 5 Tactical Retreats 1 | . 1 Traps | -11 -10 ------- Run | Yrd Mat Traps Triggered 1 | . 1 Indirectly . | . . Trap Hack Attempts . | . . Triggered . | . . Disarmed . | . . Reprogrammed . | . . Reused . | . . Traps Extracted . | . . Installed . | . . Triggered . | . . Machines | -11 -10 ---------- Run | Yrd Mat Machines Disabled 1 | . 1 Max in Single Turn 1 | . 1 Machines Repaired . | . . Machines Dismantled . | . . Machines Sabotaged . | . . Overloaded Fab Kills . | . . Hacking | -11 -10 --------- Run | Yrd Mat Machines Accessed 2 | . 2 Terminals 2 | . 2 Fabricators . | . . Repair Stations . | . . Recycling Units . | . . Scanalyzers . | . . Garrison Access . | . . Total Hacks 10 | . 10 Successful 7 | . 7 Failed 2 | . 2 Catastrophic . | . . Database Lockouts 1 | . 1 Manual . | . . Terminals 10 | . 10 Fabricators . | . . Repair Stations . | . . Recycling Units . | . . Scanalyzers . | . . Garrison Access . | . . Terminal Hacks 7 | . 7 Record 4 | . 4 Alert Level 1 | . 1 Transport Status 1 | . 1 Zone Layout 1 | . 1 Fabricator Hacks . | . . Repair Station Hacks . | . . Recycling Unit Hacks . | . . Scanalyzer . | . . Garrison Access Hacks . | . . Unauthorized Hacks . | . . Terminals . | . . Fabricators . | . . Repair Stations . | . . Recycling Units . | . . Scanalyzers . | . . Garrison Access . | . . Data Cores Recovered . | . . Used . | . . Hacking Detections 2 | . 2 Full Trace Events 1 | . 1 Feedback Events . | . . Feedback Blocked . | . . Robot Schematics Acquired . | . . Robots Built . | . . Authchips . | . . Time . | . . Total Robot Build Rating . | . . Part Schematics Acquired . | . . Parts Built . | . . Authchips . | . . Time . | . . Total Part Build Rating . | . . Part Studies Acquired . | . . Parts Repaired . | . . Time . | . . Parts Recycled . | . . Recycled Matter . | . . Retrieved Matter . | . . Retrieved Components . | . . Parts Scanalyzed . | . . Part Schematics Acquired . | . . Parts Damaged . | . . Bothacking | -11 -10 ------------ Run | Yrd Mat Used RIF Installer . | . . Robots Hacked . | . . Non-combat . | . . Combat . | . . Robot Hacks Applied . | . . Relay Couplers Released . | . . Fabnet Peak Effective % . | . . Robots Rewired . | . . Allies Hacked . | . . Hacks Repelled . | . . Allies | -11 -10 -------- Run | Yrd Mat Total Allies . | . . Largest Group . | . . Highest-Rated Group . | . . Highest-Rated Ally . | . . Total Orders . | . . Ally Attacks . | . . Total Damage . | . . Kills . | . . Allies Corrupted . | . . Allies Melted . | . . Intel | -11 -10 ------- Run | Yrd Mat Active Infowar (turns) . | . . Robot Analysis Total . | . . Derelict Logs Recovered . | . . Drone Launches . | . . Drone Recoveries . | . . Exploration | -11 -10 ------------- Run | Yrd Mat Turns Passed 2761 | 2249 512 Spaces Moved 2128 | 1861 267 Core 37 | 37 . Treads . | . . Legs 2091 | 1824 267 Wheels . | . . Hover . | . . Flight . | . . Fastest Speed 50 | 50 120 Average Speed 119 | 118 128 Slowest Speed 260 | 120 260 Overloaded Moves . | . . Propulsion Burnouts . | . . Robots Hopped . | . . Potential Cave-ins 4 | 4 . Cave-ins Triggered . | . . Exploration Rate (%) 35 | 44 27 Regions Visited 1 Branch Regions . Pre-discovered Areas . | . . Known Exits Taken . | . . Unknown Exits Taken 1 | 1 . Scrap Searched . | . . Spaces Dug . | . . Terrain Destroyed 60 | 5 55 Melee . | . . Projectile . | . . AOE 60 | 5 55 Terrain Rammed . | . . Walls Destroyed . | . . Machines Disabled . | . . Actions | -11 -10 --------- Run | Yrd Mat Total 2265 | 1895 370 Wait 15 | 15 . Move 2127 | 1860 267 Hop . | . . Pick Up 26 | 10 16 Fast Attach 1 | . 1 Attach 12 | 6 6 Detach . | . . Swap 4 | . 4 Drop 7 | . 7 Fire 68 | 4 64 Melee . | . . Ram . | . . Kick 5 | . 5 Crush . | . . Escape Stasis . | . . Rewire . | . . Trap . | . . Miscellaneous . | . . Route ------- -11/Scrapyard -10/Materials History --------- Turn | Location | Event 2 | -11/Scrapyard | Met Revision 17 88 | -11/Scrapyard | Discovered new exit (range 8) 2250 | -11/Scrapyard | Entered Materials 2251 | -10/Materials | Build established: Mutant 2521 | -10/Materials | Lost 3 parts (1p1u1w) 2538 | -10/Materials | Core integrity fell below 50% 2660 | -10/Materials | Central database locked down 2745 | -10/Materials | Core integrity fell below 20% 2762 | -10/Materials | Destroyed by G-34 Mercenary with Small Laser Last Messages --------------- G-34 Mercenary destroyed. Door malfunctions. EM Pulse Gun destroyed. U-05 Engineer repairs door. U-05 Engineer lays Concrete. Acquired Hcp. Storage Unit. U-05 Engineer lays Concrete. K-01 Serf collects debris. U-05 Engineer lays Concrete. K-01 Serf collects debris. U-05 Engineer lays Concrete. K-01 Serf collects debris. U-05 Engineer lays Concrete. K-01 Serf collects debris. U-05 Engineer lays Concrete. K-01 Serf collects debris. U-05 Engineer lays Concrete. K-01 Serf collects debris. U-05 Engineer lays Concrete. [Achievement: First Step to Greatness] Map ----- +----------------------------------------------------+ | | | | | | | | | ?????????????????????????????????????????????????? | | ?????????????????????????????????????????????????? | | ?????????????????????????????????????????????????? | | ?????????????????????????????????????????????????? | | ?????????????????????????????????????????????????? | | ?????????????????????????????????????????????????? | | ?????????????????????????????????????????????????? | | ?????????????????????????????????????????????????? | | ?????????????????????????????????????????????????? | | ?????????????????????????????????????? ?????????? | | ????????????????????????????????###### ?????????? | | ???????????????????????????????? ??????????? | | ??????????????????????????????? ??????????? | | ??????????????????????????????? """?? ???????? | | ??????????????????????????????? """ ??????? | | ?###############??????????????? """ ??????? | | ?# ##############?? ??????? | | ?# # """ ### ????????? | | ?# " """"" # """ u# """??????????? | | ?# """"""""" # """k =# """ ?????? | | ?# """ """ # u g g!u/! """ ????? | | ?# # @ # #???????? | | ?#########+################## #???????? | | ???????# ############### """ #???????? | | ???????# ==% """ ?#???????? | | ???????# ====% """ ?????????? | | ???????# !%[ + ?????? | | ???????# ##+############ #???????? | | ???????### ### #?????###### """ #???????? | | ??????## # # # #??????????? """ #???????? | | ?????## #%# # "" #??????????? """??+???????? | | ?????# # #=# """ #???????????? ??????????? | | ?????## # # # ! """ #???????????? ?????????? | | ??????# =# # #!! #????????????? ####?????????? | | ??????## # # # ! #??????????????"????????????? | | ??????# #%# # "" #???????????????????????????? | | ??????# # # # "T #???????????????????????????? | | ???????#!#!# # "" #???????????????????????????? | | ???????###%### #???????????????????????????? | | ##########=###########???????????????????????????? | | # #=T#????????????????????????????????????? | | #""" # ##????????????????????????????????????? | | #""" # #?????????????????????????????????????? | | #""" # #?????????????????????????????????????? | | # # #?????????????????????????????????????? | | #""" # #?????????????????????????????????????? | +----------------------------------------------------+ Best States ------------- Heat Dissipation 25 Energy Generation 14 Energy Capacity 260 Matter Stores 350 Matter Capacity 350 Sight Range 16 Terrain Scan Density 10 Utility Shielding 33 Evasion (%) 55 Item Schematics ----------------- None Robot Schematics ------------------ None Fabricated ------------ Nothing Repaired ---------- Nothing Studied --------- None Alien Tech Used ----------------- None Achievements -------------- First Step to Greatness For Emergencies Only Organ Harvest Storm Trooper There's More Where That Came From Uninvited Guest Challenges ------------ None Game ------ Seed GammaLinearRifle Manual? 0 Play Time 00:26:56 Cumulative 0.4 hours Start 2025.12.27 @ 11:23:05 End 2025.12.27 @ 11:50:40 Sessions 1 Manual Loads 0 Difficulty Rogue Special Mode None Game No. 1 Rogue 1 Adventurer 0 Explorer 0 Win Type - Total 0 Types 0/0/0/0/0/0/0/0/0/0 Lore% 0 Gallery% 1 Achievement% 1 Wizard Run 0 Options --------- Layout 1 ASCII 0 Keyboard 0 Movement Arrows Keybinds 0 Fullscreen 1 Font 32/SmallcapsGlow Map View 77x35 Zoom Use 10% Tactical HUD 0 Map Filters NONE Filters NONE Steam 1 RUN: 8ac599d2-47c2-4877-a9bb-4a39e18a1de1